Cogmind - Beta 15 @@@ ROGUE MODE // 2025.05.28 @ 17:58:13 Player: Polariusz Result: Destroyed by H-61 Shepherd with Heavy Assault Cannon Performance ------------- Evolutions (4) 2000 Regions Visited (9) 1800 Robots Destroyed (58) 290 Value Destroyed (2031) 2031 Prototype IDs (16) 320 Alien Tech Used (0) 0 Bonus (1172) 1172 TOTAL SCORE: 7613 Bonus ------- Follower Combat Kills 372 Registered with UFD 300 Met Optimus in HQ 500 Cogmind --------- Core Integrity 0/850 Matter 90/300 Energy 24/100 System Corruption 7% Temperature Cool (0) Movement Core (50) Location -6/Factory Parts ------- > --- POWER (1) -------- (None) > --- PROPULSION (3) --- (None) > --- UTILITY (9) ------ Visual Processing Unit Advanced Signal Interpreter Hacking Suite > --- WEAPON (2) ------- (None) > --- INVENTORY (5) ---- Improved Heat Sink Improved Sensor Array A0-MCA's Component Scanner Peak State ------------ > --- POWER ------------ Light Ion Engine > --- PROPULSION ------- Carbon-fiber Leg Carbon-fiber Leg Carbon-fiber Leg > --- UTILITY ---------- Large Storage Unit Visual Processing Unit Spectral Analyzer Advanced Sensor Array Advanced Signal Interpreter Hardened Medium Armor Plating Hacking Suite Hacking Suite Hacking Suite > --- WEAPON ----------- Heavy Machine Gun Flak Cannon > --- INVENTORY -------- Light Nuclear Core Light Angular Momentum Engine Light Treads Armored Treads Carbon-fiber Leg Improved Heat Sink Gravity Neutralizer Improved Sensor Array Hacking Suite A0-MCA's Component Scanner Hypervelocity Mass Driver Hypervelocity Mass Driver Improved Grenade Launcher Power Maul [Rating: 58] Favorites ----------- Power Light Ion Engine Engine Light Ion Engine Power Core Light Nuclear Core Propulsion Carbon-fiber Leg Treads Armored Treads Leg Carbon-fiber Leg Wheel Compact Wheel Utility Large Storage Unit Device Improved Sensor Array Storage Large Storage Unit Processor Visual Processing Unit Hackware Hacking Suite Protection Light Armor Plating Weapon Flak Cannon Ballistic Gun Heavy Assault Rifle Ballistic Cannon Flak Cannon Launcher Grenade Launcher Impact Weapon Power Maul Build | -11 -10 -10 -10 -9 -8 -8 -8 -8 -6 ------- Run | Yrd Mat Min Exi Min Mat Sto Rec Scr Fac Slots Evolved 8 | . . . . . 4 . . . 4 Power . | . . . . . . . . . . Propulsion 1 | . . . . . . . . . 1 Utility 7 | . . . . . 4 . . . 3 Weapon . | . . . . . . . . . . Parts Attached 60 | 5 10 . . . 7 18 1 3 16 Power 6 | . 2 . . . 1 2 . . 1 Engine 5 | . 2 . . . . 2 . . 1 Core 1 | . . . . . 1 . . . . Reactor . | . . . . . . . . . . Propulsion 14 | 2 2 . . . 2 4 . . 4 Treads 2 | . . . . . . . . . 2 Leg 4 | . . . . . . 2 . . 2 Wheel 8 | 2 2 . . . 2 2 . . . Hover . | . . . . . . . . . . Flight . | . . . . . . . . . . Utility 23 | 1 3 . . . 4 7 1 1 6 Device 4 | . . . . . 1 2 . . 1 Storage 2 | 1 1 . . . . . . . . Processor 7 | . . . . . 2 2 1 1 1 Hackware 3 | . . . . . . . . . 3 Protection 7 | . 2 . . . 1 3 . . 1 Artifact . | . . . . . . . . . . Weapon 17 | 2 3 . . . . 5 . 2 5 Energy Gun . | . . . . . . . . . . Energy Cannon . | . . . . . . . . . . Ballistic Gun 8 | 2 1 . . . . 4 . . 1 Ballistic Cannon 6 | . 2 . . . . . . 2 2 Launcher 2 | . . . . . . 1 . . 1 Special Weapon . | . . . . . . . . . . Impact Weapon 1 | . . . . . . . . . 1 Slashing Weapon . | . . . . . . . . . . Piercing Weapon . | . . . . . . . . . . Special Melee Weapon . | . . . . . . . . . . Unidentified Prototypes 1 | . . . . . . 1 . . . Parts Lost 32 | . 4 . . . . 10 . . 18 Power 4 | . 1 . . . . 1 . . 2 Propulsion 9 | . 2 . . . . 2 . . 5 Utility 12 | . 1 . . . . 5 . . 6 Weapon 7 | . . . . . . 2 . . 5 Highest Loss Streak 11 | . 2 . . . . 5 . . 11 To Critical Strikes . | . . . . . . . . . . Average Backups 13 | 2 10 14 14 14 13 13 14 14 12 Power 2 | 1 2 2 2 2 1 2 2 2 1 Propulsion 3 | 1 3 4 4 4 3 3 3 3 2 Utility 5 | . 3 6 7 7 6 6 6 6 5 Weapon 2 | . 1 1 1 1 1 1 3 3 2 Tool/Special . | . . . . . . . . . . Unused Backups 17 | 1 1 1 . . 4 . 1 4 5 Power 4 | . 1 . . . 1 . . . 2 Propulsion 4 | 1 . . . . 2 . . 1 . Utility 5 | . . . . . 1 . 1 . 3 Weapon 4 | . . 1 . . . . . 3 . Tool/Special . | . . . . . . . . . . Average Slot Usage (%) 95 | . 89 100 100 100 89 82 100 100 92 Engine 7 | . 5 14 14 14 2 4 9 9 5 Leg 11 | . . . . . . 8 18 18 16 Wheel 8 | . 27 28 28 28 17 8 . . . Device 6 | . . . . . 9 8 9 9 5 Storage 9 | . 14 14 14 14 9 9 9 9 5 Processor 18 | . . . . . 17 17 27 27 20 Hackware 1 | . . . . . . . . . 17 Protection 9 | . 13 14 14 14 9 6 9 9 5 Ballistic Gun 8 | . 21 . . . . 14 18 5 2 Ballistic Cannon 11 | . 6 28 28 28 18 . . 12 9 Peak Build Rating 58 | 5 9 10 10 10 25 30 28 37 58 Average Rating 26 | 3 7 9 10 10 23 23 27 30 50 On Entrance 16 | . 5 9 10 10 10 25 26 28 37 Naked Turns . | . . . . . . . . . . Heaviest Build 45 | 9 32 32 32 32 38 42 33 39 45 Greatest Support 45 | 26 32 32 32 32 32 42 30 30 45 Greatest Overweight (x) 3 | . 1 . . . 1 3 1 1 2 Average Overweight (x) . | . . . . . 1 . 1 1 . Largest Inventory Capacity 15 | 8 15 15 15 15 15 15 15 15 15 Average Capacity 14 | 7 14 15 15 15 15 15 15 15 14 Most Carried 15 | 5 15 15 15 15 15 15 15 15 15 Average Carried 13 | 2 11 14 15 15 13 13 14 14 12 Final Capacity 15 | 8 15 15 15 15 15 15 15 15 5 Final Carried 15 | 4 15 15 15 15 15 14 15 15 3 Class Distribution -------------------- 60% | Commander-Skirmisher 36% | Mutant Dominant Class ---------------- Mutant | -10/Materials Mutant | -10/Mines Mutant | -10/Exiles Mutant | -9/Mines Mutant | -8/Materials Mutant | -8/Storage Commander-Skirmisher | -8/Recycling Commander-Skirmisher | -8/Scraptown Commander-Skirmisher | -6/Factory Resources | -11 -10 -10 -10 -9 -8 -8 -8 -8 -6 ----------- Run | Yrd Mat Min Exi Min Mat Sto Rec Scr Fac Matter Collected 1958 | 205 409 . . 92 267 463 121 20 381 Remotely . | . . . . . . . . . . Salvage Created 2021 | . 543 . . 49 244 685 . . 500 Parts 124 | . 34 . . 11 19 39 . . 21 Haulers Intercepted 1 | . . . . . . 1 . . . Recyclers Shooed 5 | . 1 . . . . 2 . . 2 Parts Field Recycled . | . . . . . . . . . . Retrieved Matter . | . . . . . . . . . . Parts Self-Destructed . | . . . . . . . . . . Prevented . | . . . . . . . . . . Kills | -11 -10 -10 -10 -9 -8 -8 -8 -8 -6 ------- Run | Yrd Mat Min Exi Min Mat Sto Rec Scr Fac Combat Hostiles Destroyed 45 | . 10 . . 5 5 13 . . 12 Guns 22 | . 10 . . . . 11 . . 1 Cannons 20 | . . . . 5 5 . . . 10 AOE 3 | . . . . . . 2 . . 1 Classes Destroyed 15 | . 6 . . . 3 2 . . 4 Worker 2 | . . . . . 1 . . . 1 Builder 2 | . 2 . . . . . . . . Tunneler 1 | . . . . . 1 . . . . Hauler 1 | . . . . . . 1 . . . Recycler 1 | . 1 . . . . . . . . Operator 2 | . 1 . . . . 1 . . . Watcher 4 | . 2 . . . 2 . . . . Swarmer 11 | . 3 . . 5 . . . . 3 Grunt 19 | . 7 . . . 3 7 . . 2 Brawler 1 | . . . . . . 1 . . . Duelist 3 | . . . . . . . . . 3 Sentry 7 | . . . . . 2 5 . . . Specialist 1 | . . . . . . . . . 1 Hunter 1 | . . . . . . . . . 1 Programmer 2 | . . . . . . . . . 2 Best Kill Streak 3 | . 3 . . 2 3 3 . . 3 Combat Bots Only 3 | . 2 . . 2 1 3 . . 3 Max Kills in Single Turn 2 | . 1 . . 1 1 2 . . 2 Gunslinging . | . . . . . . . . . . Exploded 2 | . . . . . . 2 . . 1 Melee . | . . . . . . . . . . Uniques/NPCs Destroyed . | . . . . . . . . . . Combat | -11 -10 -10 -10 -9 -8 -8 -8 -8 -6 -------- Run | Yrd Mat Min Exi Min Mat Sto Rec Scr Fac Hostile Shots Fired 438 | . 57 . . 20 20 118 . . 223 Missed 132 | . 15 . . 7 6 32 . . 72 Hits 306 | . 42 . . 13 14 86 . . 151 Melee 26 | . . . . . . 1 . . 25 Projectile 280 | . 42 . . 13 14 85 . . 126 AOE 2 | . . . . . . . . . 2 Critical Strikes 14 | . 1 . . 1 . 2 . . 10 Part Disruptions 2 | . . . . . . . . . 2 Damage Taken 5271 | . 483 . . 104 252 1420 . . 3012 Core 1171 | . 82 . . 29 16 145 . . 899 Absorbed by Shields . | . . . . . . . . . . Regen/Repaired (Parts) 67 | . . . . . 8 59 . . . Core Remaining (%) 75 | 100 . . . 55 . . . 70 . Volleys Fired 202 | . 49 . . 10 27 71 . . 45 Largest 2 | . 2 . . 2 2 2 . . 2 Hottest 112 | . 60 . . 60 60 60 . . 112 Shots Fired 380 | . 98 . . 20 54 127 . . 81 Gun 242 | . 88 . . . . 123 . . 31 Cannon 134 | . 10 . . 20 54 2 . . 48 Launcher 4 | . . . . . . 2 . . 2 Special . | . . . . . . . . . . Kinetic 376 | . 98 . . 20 54 125 . . 79 Thermal . | . . . . . . . . . . Explosive 4 | . . . . . . 2 . . 2 Electromagnetic . | . . . . . . . . . . Robot Hit Streak 22 | . 22 . . 3 10 10 . . 5 Robot Miss Streak 8 | . 4 . . 4 5 3 . . 8 Penetration Max 1 | . . . . . . . . . 1 Secondary Targets 2 | . . . . . . 2 . . . Max Gunslinging Chain 1 | . . . . . . 1 . . . Shots Hit Robots 240 | . 62 . . 9 29 82 . . 58 Core Hits 142 | . 28 . . 5 19 33 . . 57 Critical Kills 2 | . . . . . . . . . 2 Critical Parts Destroyed 8 | . . . . . . 1 . . 7 Critical Strikes 13 | . . . . 1 2 1 . . 9 Destroy 10 | . . . . . . 1 . . 9 Blast 3 | . . . . 1 2 . . . . Melee Attacks 5 | . . . . . . . . . 5 Impact 5 | . . . . . . . . . 5 Slashing . | . . . . . . . . . . Piercing . | . . . . . . . . . . Sneak Attacks . | . . . . . . . . . . Combat Hostiles . | . . . . . . . . . . Follow-up Attacks . | . . . . . . . . . . Damage Inflicted 4945 | . 827 . . 158 588 1436 . . 1936 Guns 2414 | . 763 . . . . 1258 . . 393 Cannons 1630 | . 64 . . 158 512 17 . . 879 Explosions 753 | . . . . . 76 161 . . 516 Melee 148 | . . . . . . . . . 148 Ramming . | . . . . . . . . . . Kinetic 4044 | . 827 . . 158 512 1275 . . 1272 Thermal . | . . . . . . . . . . Explosive 677 | . . . . . . 161 . . 516 Electromagnetic 76 | . . . . . 76 . . . . Impact 148 | . . . . . . . . . 148 Slashing . | . . . . . . . . . . Piercing . | . . . . . . . . . . Highest Corruption 7 | . 1 1 1 1 . . . . 7 Average Corruption 1 | . 1 1 1 1 . . . . 4 Corruption Purged . | . . . . . . . . . . Corruption Blocked . | . . . . . . . . . . Effects 6 | . . 2 . 2 . . . . 2 Message Errors 2 | . . 1 . 1 . . . . . Matter Fused 1 | . . . . . . . . . 1 Heat Flow Errors 1 | . . . . 1 . . . . . Parts Rejected 1 | . . . . . . . . . 1 Data Loss (minor) 1 | . . 1 . . . . . . . Overload Shots . | . . . . . . . . . . Overflow Damage 59 | . . . . . . . . . 59 Projectiles 17 | . . . . . . . . . 17 Explosions . | . . . . . . . . . . Melee 42 | . . . . . . . . . 42 Knockbacks 29 | . . . . 2 . . . . 27 Impact 2 | . . . . . . . . . 2 Kinetic 26 | . . . . 2 . . . . 24 Secondary 1 | . . . . . . . . . 1 Self-Inflicted Damage 28 | . . . . . 28 . . . . Shots 1 | . . . . . 1 . . . . Rammed . | . . . . . . . . . . Targets Rammed . | . . . . . . . . . . Kicked . | . . . . . . . . . . Crushed . | . . . . . . . . . . Highest Temperature 174 | . 26 . . 174 22 11 . . 35 Average Temperature 15 | . 9 . . 36 9 3 . . 10 Received Heat Transfer 1176 | . 243 . . 6 108 657 . . 162 Siege Activations . | . . . . . . . . . . Martial Activations . | . . . . . . . . . . Shielding Activations . | . . . . . . . . . . Robots Disrupted . | . . . . . . . . . . Combat Hostiles . | . . . . . . . . . . Robots Corrupted . | . . . . . . . . . . Combat Hostiles . | . . . . . . . . . . Parts Fried . | . . . . . . . . . . Impact Corruptions 2 | . . . . . . . . . 2 Robots Melted . | . . . . . . . . . . Combat Hostiles . | . . . . . . . . . . Parts Melted . | . . . . . . . . . . Heat Transferred . | . . . . . . . . . . Parts Sabotaged . | . . . . . . . . . . Parts Stolen . | . . . . . . . . . . Parts Stripped . | . . . . . . . . . . Power Chain Reactions . | . . . . . . . . . . Alert | -11 -10 -10 -10 -9 -8 -8 -8 -8 -6 ------- Run | Yrd Mat Min Exi Min Mat Sto Rec Scr Fac Maximum Alert Level 1 | . . . . . . . . . 1 Low Security (%) 97 | 100 100 100 . 100 100 100 100 . 88 Level 1 2 | . . . . . . . . . 11 Level 2 . | . . . . . . . . . . Level 3 . | . . . . . . . . . . Level 4 . | . . . . . . . . . . Level 5 . | . . . . . . . . . . High Security . | . . . . . . . . . . Max Security . | . . . . . . . . . . Peak Influence 243 | . 100 9 . 86 72 154 55 . 243 Initial 55 | . . 9 . . 25 9 55 . . Average 42 | . 52 . . 32 33 67 5 . 62 Influence Increases 2159 | . 430 . . 207 243 577 24 . 678 Destroy 0b10 Robot/C 1120 | . 200 . . 120 120 320 . . 360 Destroy 0b10 Robot/NC 85 | . 30 . . . 20 15 . . 20 Destroy Leader 266 | . 54 . . 20 34 104 . . 54 Allied During Kill 201 | . . . . 22 7 68 . . 104 Successful Hack 115 | . 55 . . . . 17 24 . 19 Disable Machine 180 | . 30 . . . 60 . . . 90 Destroy Structure 12 | . 1 . . . 2 8 . . 1 Lose Combat Pursuer 180 | . 60 . . 45 . 45 . . 30 Influence Decreases 2005 | . 406 24 . 142 285 458 166 . 524 Entered New Map 156 | . . 15 . . 40 14 87 . . Time Decay 1307 | . 366 9 . 142 185 344 79 . 182 Lost Part 320 | . 40 . . . . 100 . . 180 Lost Ally 222 | . . . . . 60 . . . 162 Squads Dispatched 7 | . 1 . . . . 2 . . 4 Investigation . | . . . . . . . . . . Extermination 1 | . . . . . . . . . 1 Reinforcement 3 | . 1 . . . . . . . 2 Assault . | . . . . . . . . . . Garrison 3 | . . . . . . 2 . . 1 Intercept . | . . . . . . . . . . Searches Triggered . | . . . . . . . . . . Construction Impeded 2 | . . . . . . . . . 2 Haulers Reinforced . | . . . . . . . . . . Active Scanning Responses . | . . . . . . . . . . Cargo Convoy Interrupts 1 | . . . . . . . . . 1 Stealth | -11 -10 -10 -10 -9 -8 -8 -8 -8 -6 --------- Run | Yrd Mat Min Exi Min Mat Sto Rec Scr Fac Distress Signals 4 | . 1 . . . . 2 . . 1 Communications Jammed . | . . . . . . . . . . Distress Signals . | . . . . . . . . . . Times Spotted 99 | . 23 . . 10 10 23 . . 33 Peak Tracking Total 11 | . 4 . . 4 3 9 . . 11 Tactical Retreats 6 | . 2 . . 1 . 2 . . 1 Traps | -11 -10 -10 -10 -9 -8 -8 -8 -8 -6 ------- Run | Yrd Mat Min Exi Min Mat Sto Rec Scr Fac Traps Triggered 1 | . 1 . . . . . . . . Indirectly . | . . . . . . . . . . Trap Hack Attempts . | . . . . . . . . . . Triggered . | . . . . . . . . . . Disarmed . | . . . . . . . . . . Reprogrammed . | . . . . . . . . . . Reused . | . . . . . . . . . . Traps Extracted . | . . . . . . . . . . Installed . | . . . . . . . . . . Triggered . | . . . . . . . . . . Machines | -11 -10 -10 -10 -9 -8 -8 -8 -8 -6 ---------- Run | Yrd Mat Min Exi Min Mat Sto Rec Scr Fac Machines Disabled 12 | . 2 . . . 4 . . . 6 Max in Single Turn 2 | . 1 . . . 2 . . . 1 Garrison Access 1 | . . . . . . . . . 1 Machines Repaired . | . . . . . . . . . . Machines Dismantled . | . . . . . . . . . . Machines Sabotaged . | . . . . . . . . . . Overloaded Fab Kills . | . . . . . . . . . . Hacking | -11 -10 -10 -10 -9 -8 -8 -8 -8 -6 --------- Run | Yrd Mat Min Exi Min Mat Sto Rec Scr Fac Machines Accessed 36 | . 8 . . . 3 5 7 6 7 Terminals 22 | . 7 . . . 3 4 5 . 3 Fabricators 2 | . . . . . . . . . 2 Repair Stations 3 | . 1 . . . . 1 . . 1 Recycling Units . | . . . . . . . . . . Scanalyzers . | . . . . . . . . . . Garrison Access 1 | . . . . . . . . . 1 Total Hacks 127 | . 20 . . . 6 16 39 32 14 Successful 96 | . 12 . . . . 10 32 32 10 Failed 31 | . 8 . . . 6 6 7 . 4 Catastrophic 5 | . 2 . . . 1 1 1 . . Database Lockouts . | . . . . . . . . . . Manual 52 | . 15 . . . 6 12 13 . 6 Terminals 59 | . 17 . . . 6 14 14 . 8 Fabricators 3 | . . . . . . . . . 3 Repair Stations 6 | . 3 . . . . 2 . . 1 Recycling Units . | . . . . . . . . . . Scanalyzers . | . . . . . . . . . . Garrison Access 2 | . . . . . . . . . 2 Terminal Hacks 75 | . 5 . . . . 5 29 32 4 Record 55 | . . . . . . . 24 31 . Part Schematic 1 | . . . . . . . 1 . . Robot Analysis 1 | . . . . . . . . . 1 Prototype ID Bank 1 | . 1 . . . . . . . . Open Door 1 | . . . . . . 1 . . . Level Access Points 1 | . . . . . . . 1 . . Emergency Access Points 3 | . . . . . . . 1 . 2 Terminal Index 3 | . 2 . . . . 1 . . . Locate Traps 5 | . 1 . . . . 2 1 . 1 Zone Layout 2 | . 1 . . . . 1 . . . Proto ID Catalog 1 | . . . . . . . . 1 . Release Object 1 | . . . . . . . 1 . . Fabricator Hacks 2 | . . . . . . . . . 2 Load Schematic 1 | . . . . . . . . . 1 Build 1 | . . . . . . . . . 1 Repair Station Hacks 3 | . 1 . . . . 2 . . . Scan Component 2 | . 1 . . . . 1 . . . Repair 1 | . . . . . . 1 . . . Recycling Unit Hacks . | . . . . . . . . . . Scanalyzer . | . . . . . . . . . . Garrison Access Hacks 1 | . . . . . . . . . 1 Seal Access 1 | . . . . . . . . . 1 Unauthorized Hacks 15 | . 6 . . . . 3 3 . 3 Terminals 15 | . 6 . . . . 3 3 . 3 Botnet 15 | . 6 . . . . 3 3 . 3 Fabricators . | . . . . . . . . . . Repair Stations . | . . . . . . . . . . Recycling Units . | . . . . . . . . . . Scanalyzers . | . . . . . . . . . . Garrison Access . | . . . . . . . . . . Data Cores Recovered 3 | . 1 . . . . 1 . . 1 Used 1 | . . . . . . . . . 1 Hacking Detections 25 | . 8 . . . 3 4 4 . 6 Full Trace Events 1 | . 1 . . . . . . . . Feedback Events . | . . . . . . . . . . Feedback Blocked . | . . . . . . . . . . Robot Schematics Acquired . | . . . . . . . . . . Robots Built . | . . . . . . . . . . Authchips . | . . . . . . . . . . Time . | . . . . . . . . . . Total Robot Build Rating . | . . . . . . . . . . Part Schematics Acquired 1 | . . . . . . . 1 . . Parts Built 2 | . . . . . . . . . 2 Authchips . | . . . . . . . . . . Time 58 | . . . . . . . . . 58 Total Part Build Rating 14 | . . . . . . . . . 14 Parts Repaired 1 | . . . . . . 1 . . . Time 32 | . . . . . . 32 . . . Parts Recycled . | . . . . . . . . . . Recycled Matter . | . . . . . . . . . . Retrieved Matter . | . . . . . . . . . . Retrieved Components . | . . . . . . . . . . Parts Scanalyzed . | . . . . . . . . . . Part Schematics Acquired . | . . . . . . . . . . Parts Damaged . | . . . . . . . . . . Bothacking | -11 -10 -10 -10 -9 -8 -8 -8 -8 -6 ------------ Run | Yrd Mat Min Exi Min Mat Sto Rec Scr Fac Used RIF Installer . | . . . . . . . . . . Robots Hacked . | . . . . . . . . . . Non-combat . | . . . . . . . . . . Combat . | . . . . . . . . . . Robot Hacks Applied . | . . . . . . . . . . Relay Couplers Released . | . . . . . . . . . . Fabnet Peak Effective % . | . . . . . . . . . . Robots Rewired . | . . . . . . . . . . Allies Hacked . | . . . . . . . . . . Hacks Repelled . | . . . . . . . . . . Allies | -11 -10 -10 -10 -9 -8 -8 -8 -8 -6 -------- Run | Yrd Mat Min Exi Min Mat Sto Rec Scr Fac Total Allies 13 | . . 3 . . . 10 . . . Largest Group 10 | . . 3 3 3 3 10 10 10 10 Highest-Rated Group 173 | . . 40 40 40 40 173 173 173 173 Highest-Rated Ally 29 | . . 16 16 16 16 29 29 29 29 Total Orders . | . . . . . . . . . . Ally Attacks 121 | . . . . 7 10 38 . . 66 Total Damage 1343 | . . . . 33 58 422 . . 830 Kills 15 | . . . . 1 1 4 . . 9 Allies Corrupted . | . . . . . . . . . . Allies Melted . | . . . . . . . . . . Intel | -11 -10 -10 -10 -9 -8 -8 -8 -8 -6 ------- Run | Yrd Mat Min Exi Min Mat Sto Rec Scr Fac Active Infowar (turns) 5800 | . . . . . 391 880 613 3065 851 Optics 5800 | . . . . . 391 880 613 3065 851 Sensors 4948 | . . . . . . 447 613 3065 823 Robot Analysis Total 1 | . . . . . . . . . 1 Derelict Logs Recovered 1 | . . . . 1 . . . . . Drone Launches . | . . . . . . . . . . Drone Recoveries . | . . . . . . . . . . Exploration | -11 -10 -10 -10 -9 -8 -8 -8 -8 -6 ------------- Run | Yrd Mat Min Exi Min Mat Sto Rec Scr Fac Turns Passed 7675 | 54 908 328 133 451 392 880 613 3065 851 Spaces Moved 4469 | 48 673 295 122 388 193 400 293 1592 465 Core 49 | 16 . . . . . . . . 33 Treads 13 | . . . . . . . . . 13 Legs 2517 | . . . . . . 213 293 1592 419 Wheels 1890 | 32 673 295 122 388 193 187 . . . Hover . | . . . . . . . . . . Flight . | . . . . . . . . . . Fastest Speed 50 | 50 90 100 100 100 105 90 190 190 50 Average Speed 144 | 76 100 100 100 100 105 136 190 190 127 Slowest Speed 260 | 90 115 100 100 100 115 190 190 190 260 Overloaded Moves . | . . . . . . . . . . Propulsion Burnouts . | . . . . . . . . . . Robots Hopped . | . . . . . . . . . . Potential Cave-ins . | . . . . . . . . . . Cave-ins Triggered . | . . . . . . . . . . Exploration Rate (%) 50 | 4 96 53 27 66 25 61 65 96 13 Regions Visited 9 Branch Regions 6 Pre-discovered Areas 1 | . . . . 1 . . . . . Known Exits Taken 3 | . . . . . . 1 1 1 . Unknown Exits Taken 6 | 1 1 1 1 1 1 . . . . Scrap Searched 9 | . . . . 1 . . . 8 . Spaces Dug . | . . . . . . . . . . Terrain Destroyed 6 | . . . . . . 5 . . 1 Melee . | . . . . . . . . . . Projectile . | . . . . . . . . . . AOE 6 | . . . . . . 5 . . 1 Terrain Rammed . | . . . . . . . . . . Walls Destroyed . | . . . . . . . . . . Machines Disabled . | . . . . . . . . . . Actions | -11 -10 -10 -10 -9 -8 -8 -8 -8 -6 --------- Run | Yrd Mat Min Exi Min Mat Sto Rec Scr Fac Total 5329 | 65 809 328 133 431 331 608 350 1637 637 Wait 485 | 2 53 31 12 34 87 96 53 26 91 Move 4460 | 47 672 294 121 387 192 399 292 1591 465 Hop . | . . . . . . . . . . Pick Up 73 | 10 20 1 . . 11 15 2 6 8 Fast Attach 6 | . 1 . . . . 2 1 2 . Attach 50 | 5 8 . . . 6 16 . 1 14 Detach 2 | . 1 . . . . 1 . . . Swap 9 | . 1 . . . 1 2 . . 5 Drop 34 | 1 4 2 . . 7 6 2 8 4 Fire 202 | . 49 . . 10 27 71 . . 45 Melee 5 | . . . . . . . . . 5 Ram . | . . . . . . . . . . Kick . | . . . . . . . . . . Crush . | . . . . . . . . . . Escape Stasis . | . . . . . . . . . . Rewire 3 | . . . . . . . . 3 . Trap . | . . . . . . . . . . Miscellaneous . | . . . . . . . . . . Route ------- -11/Scrapyard -10/Materials (discovered 5 exits: [*Mat x3] / [*Min] / [*Sub]) -10/Mines -10/Exiles -9/Mines -8/Materials -8/Storage -8/Recycling (discovered 2 exits: *Fac / *Scr) -8/Scraptown (discovered 2 exits: *Fac x2) -6/Factory History --------- Turn | Location | Event 8 | -11/Scrapyard | Discovered new exit (range 15) 55 | -11/Scrapyard | Entered Materials 150 | -10/Materials | Discovered new exit (range 16) 209 | -10/Materials | Discovered new exit (range 16) 318 | -10/Materials | Build established: Mutant 612 | -10/Materials | Discovered new exit (range 15) 751 | -10/Materials | Discovered new exit (range 16) 950 | -10/Materials | Discovered new exit (range 8) 963 | -10/Materials | Entered Mines 986 | -10/Mines | Found a Scrap Suit stashed away for nefarious purposes 990 | -10/Mines | Found Scrap Suit 1073 | -10/Mines | Deemed a non-threat by the Exiles lab entrance 1090 | -10/Mines | Assisted by bots powering up and referring to "LRC-V3" 1255 | -10/Mines | Discovered new exit (range 5) 1291 | -10/Mines | Entered Exiles 1291 | -10/Exiles | Accompanied by 3 allies 1316 | -10/Exiles | Met 8R-AWN 1333 | -10/Exiles | Met EX-HEX 1401 | -10/Exiles | Discovered new exit (range 14) 1424 | -10/Exiles | Entered Mines 1424 | -9/Mines | Accompanied by 3 allies 1441 | -9/Mines | Met a Derelict bent on vengeance 1463 | -9/Mines | Learned location of Storage (-8) 1493 | -9/Mines | Assembled infested the area 1785 | -9/Mines | Found a hidden stash of uninstalled traps 1863 | -9/Mines | Discovered new exit (range 5) 1875 | -9/Mines | Entered Materials 1875 | -8/Materials | Accompanied by 3 allies 1875 | -8/Materials | Evolved 4 slots: Utility x4 2003 | -8/Materials | Lost 3 allies 2158 | -8/Materials | Discovered new exit (range 14) 2267 | -8/Materials | Entered Storage 2528 | -8/Storage | Garrison activated, responded to threat 2597 | -8/Storage | Lost 5 parts (1p2n2u) 2683 | -8/Storage | Lost 4 parts (2u2w) 2758 | -8/Storage | Repaired Hvy. Assault Rifle 2829 | -8/Storage | Assisted by bots powering up and referring to "LRC-V3" 3066 | -8/Storage | Garrison activated, responded to threat 3114 | -8/Storage | Used back door to open Recycling access 3114 | -8/Storage | Discovered new exit (range 5) 3120 | -8/Storage | Identified exit to Recycling 3142 | -8/Storage | Build established: Commander-Skirmisher 3147 | -8/Storage | Entered Recycling 3147 | -8/Recycling | Accompanied by 10 allies 3324 | -8/Recycling | Identified exit to Factory 3683 | -8/Recycling | Scanned before Scraplab entrance 3712 | -8/Recycling | Entered Scraplab 3729 | -8/Recycling | Discovered new exit (range 3) 3750 | -8/Recycling | Identified exit to Scraptown 3760 | -8/Recycling | Entered Scraptown 3760 | -8/Scraptown | Accompanied by 10 allies 4304 | -8/Scraptown | Visited SPCMW 4370 | -8/Scraptown | Visited TADAMA 4424 | -8/Scraptown | Visited Awakened 4469 | -8/Scraptown | Visited UFD Registry 4469 | -8/Scraptown | Registered with UFD as "Rustthruster" 4522 | -8/Scraptown | Visited CPS Storage 4852 | -8/Scraptown | Visited Bundlers 4964 | -8/Scraptown | Visited Science Testing Area 5109 | -8/Scraptown | Discovered exit to Factory (range 3) 5396 | -8/Scraptown | Visited Science Guys 5465 | -8/Scraptown | Visited Supply Room 5495 | -8/Scraptown | Visited Curators Association 5842 | -8/Scraptown | Visited DA-N13 Charitable Foundation 5861 | -8/Scraptown | Found DCF Scrap (29 items) 5912 | -8/Scraptown | Visited Scrapoid Research Area 5967 | -8/Scraptown | Visited Infowarlord's Domain 5981 | -8/Scraptown | Found Spectral Analyzer 6020 | -8/Scraptown | Visited A0-MCA Data Center 6032 | -8/Scraptown | Given a B- rating by A0-MCA 6034 | -8/Scraptown | Found A0-MCA's Component Scanner 6106 | -8/Scraptown | Visited Junk Repository 6244 | -8/Scraptown | Visited Abandonware Association 6263 | -8/Scraptown | Learned abandonware demo "REVENGE.EXE" 6263 | -8/Scraptown | Learned abandonware demo "KABOOM.EXE" 6512 | -8/Scraptown | Discovered exit to Factory (range 5) 6616 | -8/Scraptown | Met Optimus 6616 | -8/Scraptown | Accepted into 0bPrime 6825 | -8/Scraptown | Entered Factory 6825 | -6/Factory | Accompanied by 10 allies 6825 | -6/Factory | Evolved 4 slots: Propulsion x1, Utility x3 7385 | -6/Factory | Fabricated Hyp. Mass Driver (x2) 7409 | -6/Factory | Garrison activated, responded to threat 7519 | -6/Factory | Lost 7 allies 7614 | -6/Factory | Lost 6 parts (1p3n1u1w) 7621 | -6/Factory | Cargo convoy interrupted 7645 | -6/Factory | Core integrity fell below 50% 7655 | -6/Factory | Core integrity fell below 20% 7676 | -6/Factory | Destroyed by H-61 Shepherd with Heavy Assault Cannon Last Messages --------------- 07667_ Acquired Hyp. Mass Driver. 07669_ HV Slug penetrates Wall. 07669_ K-01 Serf collects debris. 07671_ HV Slug penetrates P-60 Hacker. 07671_ P-60 Hacker suffers critical hit (Destroy). 07671_ Destroyed Gravmag System. 07671_ U-05 Engineer lays Concrete. 07671_ Hyp. Mass Driver destroyed. 07672_ K-01 Serf collects debris. 07672_ K-01 Serf cleans the Terminal. 07672_ U-05 Engineer lays Concrete. 07673_ Dropped Carbon-fiber Leg. 07673_ K-01 Serf collects debris. 07674_ U-05 Engineer lays Concrete. 07675_ K-01 Serf collects debris. 07675_ U-05 Engineer lays Concrete. 07675_ K-01 Serf cleans the Terminal. 07676_ Spectral Analyzer destroyed. 07676_ Critical hit (Blast). Map ----- +----------------------------------------------------+ | # / """" +???????????????????????????????? | | # ## """" """#???????????????????????????????? | | ## ## """" """#???????????????????????????????? | | # ## """" ! R"#???????????????????????????????? | | # ## """" """#???????????????????????????????? | | # ## "" #???????????????????????????????? | | # ## #?#?????????????????????????????? | | # ############### #?????????????????????????????? | | # ############### ################??????????????? | | # ?????????????? | | # ?????????????? | | + """" ?????????????? | | # ""F" ????????????? | | + ^^ "" ????????????? | | # ########### T#######???????????????? | | "# #??????????????????????????????????? | | "# """%""" #??????????????????????????????????? | | "# """ """ #??????????????????????????????????? | | # """%""" #????????????????????????????????? ? | | # """ "%" #??????????????????????????? ? | | ## % #????????????????????????? ? | | ?# %""" "%" ######??????????????????" #?? | | ?# [""" """ ;;;;;##################"" #?? | | ?# %""" """ * % ^ k ### | | ?# %"""*"""= !!= hk ^ + | | ?+[^*%[%%==%*% ! hpu u @ ^ # | | # [="""%""%% !! =%p R ^ k # | | ?# !"""="%%u ump = ^H """ ! ?? | | ?# """ ""k ;########;###### """ ???? | | ?# ""% "" "#????????#?????????"???????? | | ?# ##??????????????????????????? | | ?#^ """ """ %% #???????????????????????????? | | ?# """ """ %% *##??????????????????????????? | | ?# ^""" """ %" %* #??????????????????????????? | | ?# """ """ =%"#??????????????????????????? | | ?# % """[ "#??????????????????????????? | | ?# !* "% %"%% """% T#??????????????????????????? | | ?#!=% " """= "#??????????????????????????? | | ?# ! ! " ^ "#??????????????????????????? | | ?# %* """ "#??????????????????????????? | | ?# !!!![ """ ##??????????????????????????? | | ?# =%= """ #???????????????????????????? | | ?##"" "" % #???????????????????????????? | | ??#""G""# % """ #???????????????????????????? | | ??####### """ = ???????????????????????? | | ????????# """ !#????????????????????? | | ????????# """ #????????????????????? | | ????????# """ """ +????????????????????? | | ????????# ^""" """???????????????????????? | | ????????# """ ???????????????????????? | +----------------------------------------------------+ Best States ------------- Heat Dissipation 37 Energy Generation 18 Energy Capacity 250 Matter Stores 300 Matter Capacity 300 Sight Range 24 Robot Scan Range 16 Terrain Scan Density 10 Additional Mass Support 12 Armor Coverage 225 Evasion (%) 55 Targeting Accuracy 5 Recoil Reduction 2 Offensive Hacking 30 Item Schematics ----------------- Adv. Treads | -8/Recycling | Hacked Robot Schematics ------------------ None Fabricated ------------ Hyp. Mass Driver | x2 | -6/Factory | Preloaded Repaired ---------- Hvy. Assault Rifle | 48% | -8/Storage Alien Tech Used ----------------- None Achievements -------------- \\IAMDERELICT Challenges ------------ None Game ------ Seed FlyingSniperArticulator Manual? 0 Play Time 01:19:01 Cumulative 49.6 hours Start 2025.05.28 @ 16:37:01 End 2025.05.28 @ 17:58:13 Sessions 3 Manual Loads 0 Difficulty Rogue Special Mode None Game No. 51 Rogue 51 Adventurer 0 Explorer 0 Win Type - Total 1 Types 1/0/0/0/0/0/0/0/0/0 Lore% 33 Gallery% 31 Achievement% 30 Wizard Run 0 Options --------- Layout 1 ASCII 0 Keyboard 0 Movement Mouse Keybinds 0 Fullscreen 1 Font 24/Smallcaps Map View 50x35 Zoom Use 0% Tactical HUD 1 Map Filters NONE Filters NONE Steam 1 RUN: b041e3ca-6dd7-47d4-a101-f0867695a2bb